fUSD/lending_fUSD_20260320
["ID","MTS","AMOUNT","RATE_DAILY","PERIOD"]
[408628001,1774012233013,-500.0,0.00010699,2]
[408628002,1774012233022,-500.0,0.00010699,2]
[408628003,1774012233031,-500.0,0.00010699,2]
[408628004,1774012233041,-500.0,0.00010699,2]
[408628005,1774012233050,-500.0,0.00010699,2]
[408628006,1774012233059,-500.0,0.00010699,2]
[408628007,1774012233069,-500.0,0.00010699,2]
[408628008,1774012233078,-500.0,0.00010699,2]
[408628009,1774012233087,-365.24499794,0.00010699,2]
[408628010,1774012233096,-127655.51815714,0.000107,2]
[408628011,1774012233111,-735.39664,0.000107,2]
[408628012,1774012233123,-317.765,0.000107,2]
[408628015,1774012237942,-279.745,9.941e-05,2]
[408628016,1774012237954,-1024.82930202,9.941e-05,2]
[408628017,1774012237964,-9705.57026637,0.000107,2]
[408628018,1774012237976,-450.61101564,0.000107,2]
[408628019,1774012238103,-3284.59443519,0.000107,2]
[408628020,1774012238116,-299011.29368566,0.000107,2]
[408628021,1774012238128,-5875.0197,0.000108,2]
[408628022,1774012238137,-1974.4588,0.000108,2]
[408628023,1774012238147,-17112.168,0.000109,2]
[408628024,1774012238157,-1000.0,0.000109,2]
[408628026,1774012238167,-4043.69592315,0.000109,2]
[408628028,1774012238176,-1906.04668401,0.00010935,2]
[408628029,1774012238185,-5000.0,0.00010935,2]
[408628030,1774012238195,-150.0,0.00010959,2]
[408628031,1774012238205,-166.66,0.00010959,2]
[408628032,1774012238214,-151.0,0.00011042,2]
[408628034,1774012238223,-166.66,0.00011068,2]
[408628036,1774012238234,-26665.23901098,0.00011099,2]
[408628038,1774012238249,-166.66,0.00011178,2]
[408628040,1774012238258,-170.0,0.00011192,2]
[408628042,1774012238268,-29349.3374,0.00011213,2]
[408628044,1774012238277,-503.53995742,0.00011221,2]
[408628046,1774012238287,-500.0,0.00011221,2]
[408628048,1774012238296,-1000.0,0.00011221,2]
[408628050,1774012238311,-500.45556563,0.00011221,2]
[408628052,1774012238322,-500.0,0.00011221,2]
[408628054,1774012238331,-500.0,0.00011221,2]
[408628056,1774012238341,-500.0,0.00011221,2]
[408628058,1774012238352,-500.0,0.00011221,2]
[408628060,1774012238361,-500.0,0.00011286,2]
[408628062,1774012238371,-7965.41053268,0.00011286,2]
[408628064,1774012238381,-268.1075023,0.00011286,2]
[408628066,1774012238391,-1328.27659266,0.00011286,2]
[408628068,1774012238400,-151.0,0.00011286,2]
[408628070,1774012238410,-166.66,0.00011288,2]
[408628072,1774012238420,-6419.22703335,0.00011297,2]
[408628074,1774012238430,-2000.0,0.000113,2]
[408628076,1774012238439,-165.86435723,0.00011315,2]
[408628078,1774012238449,-500.0,0.00011315,2]
[408628080,1774012238458,-500.0,0.00011315,2]
[408628082,1774012238468,-500.0,0.0001134,2]
[408628084,1774012238478,-500.0,0.0001134,2]
[408628086,1774012238488,-500.0,0.0001134,2]
[408628088,1774012238498,-500.0,0.0001134,2]
[408628090,1774012238508,-500.0,0.0001134,2]
[408628092,1774012238518,-500.0,0.00011341,2]
[408628093,1774012238528,-8260.13072239,0.00011341,2]
[408628094,1774012238537,-151.0,0.00011341,2]
[408628095,1774012238547,-2500.0,0.0001135,2]
[408628096,1774012238556,-500.0,0.00011396,2]
[408628097,1774012238566,-8565.75555911,0.00011396,2]
[408628098,1774012238576,-166.66,0.00011397,2]
[408628099,1774012238585,-32050.4717438,0.00011413,2]
[408628100,1774012238595,-3744.7038509,0.00011413,2]
[408628101,1774012238604,-5979.5044361,0.00011413,2]
[408628102,1774012238614,-500.0,0.00011451,2]
[408628103,1774012238624,-8882.6885148,0.00011451,2]
[408628104,1774012238633,-500.58140027,0.00011473,2]
[408628105,1774012238644,-500.0,0.00011473,2]
[408628106,1774012238654,-167.48342799,0.00011473,2]
[408628107,1774012238668,-171.34897328,0.00011473,2]
[408628108,1774012238677,-500.0,0.00011473,2]
[408628109,1774012238687,-151.0,0.00011479,2]
[408628110,1774012238697,-56825.13939443,0.00011482,2]
[408628111,1774012238706,-151.0,0.00011482,2]
[408628112,1774012238716,-26665.23901098,0.000115,2]
[408628113,1774012238725,-151.0,0.00011502,2]
[408628114,1774012238735,-9211.34798985,0.00011506,2]
[408628115,1774012238744,-166.66,0.00011507,2]
[408628116,1774012238753,-1416.13,0.00011507,2]
[408628117,1774012238763,-152.337292,0.00011507,2]
[408628118,1774012238772,-151.0,0.00011557,2]
[408628119,1774012238783,-9552.16786547,0.00011561,2]
[408628120,1774012238792,-1303.43151202,0.00011582,2]
[408628121,1774012238806,-2604.09758421,0.00011596,2]
[408628122,1774012238816,-151.0,0.00011597,2]
[408628123,1774012238826,-151.0,0.00011597,2]
[408628124,1774012238835,-210.630974,0.00011597,2]
[408628125,1774012238845,-210.630974,0.00011597,2]
[408628126,1774012238855,-210.630974,0.00011597,2]
[408628127,1774012238868,-210.630974,0.00011597,2]
[408628128,1774012238878,-236.641516,0.00011597,2]
[408628129,1774012238888,-236.641516,0.00011597,2]
[408628130,1774012238897,-236.641516,0.00011597,2]
[408628131,1774012238906,-236.641516,0.00011597,2]
[408628132,1774012238917,-150.0,0.000116,2]
[408628133,1774012238927,-1200.0,0.00011606,2]
[408628134,1774012238936,-151.0,0.00011607,2]
[408628135,1774012238946,-9905.5980765,0.00011616,2]
[408628136,1774012238956,-10272.10520533,0.00011671,2]
[408628137,1774012238965,-151.0,0.00011697,2]
[408628138,1774012238976,-151.0,0.00011697,2]
[408628139,1774012238986,-789.0,0.00011701,5]
[408628140,1774012238995,-1555.80383002,0.00011721,2]
[408628141,1774012239005,-10652.17309792,0.00011726,2]
[408628142,1774012239015,-150.0,0.00011739,2]
[408628143,1774012239024,-1344.0,0.00011739,2]
[408628144,1774012239034,-151.0,0.00011739,2]
[408628145,1774012239043,-1226.329,0.00011739,2]
[408628146,1774012239052,-621.0,0.00011739,2]
[408628147,1774012239064,-1261.0,0.00011739,2]
[408628148,1774012239073,-1215.0,0.00011739,2]
[408628149,1774012239083,-924.0,0.00011739,2]
[408628150,1774012239093,-2465.0,0.00011739,2]
[408628151,1774012239103,-6006.0,0.00011739,2]
[408628152,1774012239113,-500.0,0.00011766,2]
[408628153,1774012239123,-1400.0,0.00011766,2]
[408628154,1774012239133,-1000.0,0.00011766,2]
[408628155,1774012239143,-11046.30350255,0.00011781,2]
[408628156,1774012239158,-151.0,0.00011781,2]
[408628157,1774012239168,-151.0,0.00011781,2]
[408628158,1774012239179,-400.0,0.000118,4]
[408628159,1774012239189,-2009.0,0.000118,2]
[408628160,1774012239199,-2000.0,0.00011821,2]
[408628161,1774012239209,-261.91582969,0.00011822,2]
[408628162,1774012239219,-151.0,0.00011827,2]
[408628163,1774012239229,-7108.3278283,0.00011836,2]
[408628164,1774012239239,-154.65538,0.0001184,2]
[408628165,1774012239248,-154.65538,0.0001184,2]
[408628166,1774012239259,-154.65538,0.0001184,2]
[408628167,1774012239269,-154.65539,0.0001184,2]
[408628168,1774012239281,-500.0,0.00011863,2]
[408628169,1774012239291,-500.63590136,0.00011863,2]
[408628170,1774012239301,-800.0,0.000119,4]
[408628171,1774012239317,-4043.69592308,0.00011943,2]
[408628172,1774012239327,-154.65538,0.0001196,2]
[408628173,1774012239337,-154.65539,0.0001196,2]
[408628174,1774012239348,-209.76774762,0.00011966,2]
[408628175,1774012239359,-164.76,0.00012,2]
[408628176,1774012239369,-2000.0,0.00012,2]
[408628177,1774012239379,-500.7546073,0.00012021,2]
[408628178,1774012239390,-6419.22703328,0.00012031,2]
[408628179,1774012239401,-2344.0,0.000121,2]
[408628180,1774012239410,-240.649564,0.00012133,2]
[408628181,1774012239419,-289.725347,0.00012133,2]
[408628182,1774012239429,-170.0,0.00012192,2]
[408628183,1774012239438,-521.22781756,0.0001221,2]
[408628184,1774012239448,-151.0,0.00012297,2]
[408628185,1774012239457,-151.0,0.00012297,2]
[408628186,1774012239466,-210.630974,0.00012297,2]
[408628187,1774012239476,-210.630974,0.00012297,2]
[408628188,1774012239485,-210.630974,0.00012297,2]
[408628189,1774012239494,-210.630974,0.00012297,2]
[408628190,1774012239504,-236.641516,0.00012297,2]
[408628191,1774012239513,-236.641516,0.00012297,2]
[408628192,1774012239522,-236.641516,0.00012297,2]
[408628193,1774012239532,-236.641516,0.00012297,2]
[408628194,1774012239541,-26665.23901098,0.000123,2]
[408628195,1774012239551,-151.0,0.00012329,2]
[408628196,1774012239561,-151.0,0.00012329,2]
[408628197,1774012239571,-151.0,0.00012329,2]
[408628198,1774012239581,-1308.75100802,0.00012371,2]
[408628199,1774012239591,-163.82230938,0.00012378,2]
[408628200,1774012239601,-155.481,0.0001238,2]
[408628201,1774012239612,-61619.52269561,0.00012381,7]
[408628202,1774012239622,-358.95721386,0.00012381,7]
[408628203,1774012239632,-269.18175318,0.00012381,7]
[408628204,1774012239643,-12067.0596,0.00012381,7]
[408628205,1774012239653,-199140.43179032,0.00012381,7]
[408628206,1774012239663,-572.3340988,0.00012381,7]
[408628207,1774012239673,-245.40960054,0.00012381,7]
[408628208,1774012239683,-500.0,0.00012381,2]
[408628209,1774012239694,-500.0,0.00012381,2]
[408628210,1774012239704,-500.0,0.00012381,2]
[408628211,1774012239713,-500.0,0.00012381,2]
[408628212,1774012239723,-500.0,0.00012381,2]
[408628213,1774012239734,-500.0,0.00012381,2]
[408628214,1774012239744,-500.0,0.00012381,2]
[408628215,1774012239753,-500.0,0.00012381,2]
[408628216,1774012239763,-500.0,0.00012381,2]
[408628217,1774012239774,-500.0,0.00012381,2]
[408628218,1774012239785,-500.0,0.00012381,2]
[408628219,1774012239795,-500.0,0.00012381,2]
[408628220,1774012239805,-500.0,0.00012381,2]
[408628221,1774012239815,-500.0,0.00012381,2]
[408628222,1774012239826,-500.0,0.00012381,2]
[408628223,1774012239836,-500.0,0.00012381,2]
[408628224,1774012239845,-500.0,0.00012381,2]
[408628225,1774012239855,-500.0,0.00012381,2]
[408628226,1774012239864,-500.0,0.00012381,2]
[408628227,1774012239873,-500.0,0.00012381,2]
[408628228,1774012239883,-500.0,0.00012381,2]
[408628229,1774012239893,-500.0,0.00012381,2]
[408628230,1774012239903,-500.0,0.00012381,2]
[408628231,1774012239913,-500.0,0.00012381,2]
[408628232,1774012239923,-500.0,0.00012381,2]
[408628233,1774012239934,-500.0,0.00012381,2]
[408628234,1774012239944,-500.0,0.00012381,2]
[408628235,1774012239954,-500.0,0.00012381,2]
[408628236,1774012239964,-500.0,0.00012381,2]
[408628237,1774012239975,-500.0,0.00012381,2]
[408628238,1774012239987,-500.0,0.00012381,2]
[408628239,1774012239996,-500.0,0.00012381,2]
[408628240,1774012240007,-500.0,0.00012381,2]
[408628241,1774012240017,-500.0,0.00012381,2]
[408628242,1774012240027,-500.0,0.00012381,2]
[408628243,1774012240038,-500.0,0.00012381,2]
[408628244,1774012240049,-500.0,0.00012381,2]
[408628245,1774012240059,-542.0,0.00012381,2]
[408628246,1774012240069,-500.0,0.00012381,2]
[408628247,1774012240079,-500.0,0.00012381,2]
[408628248,1774012240089,-500.0,0.00012381,2]
[408628250,1774012240100,-500.0,0.00012381,2]
[408628252,1774012240110,-500.0,0.00012381,2]
[408628254,1774012240119,-500.0,0.00012381,2]
[408628255,1774012240130,-500.0,0.00012381,2]
[408628256,1774012240140,-500.0,0.00012381,2]
[408628257,1774012240150,-500.0,0.00012381,2]
[408628258,1774012240160,-500.0,0.00012381,2]
[408628259,1774012240170,-500.0,0.00012381,2]
[408628260,1774012240179,-500.0,0.00012381,2]
[408628261,1774012240189,-500.0,0.00012381,2]
[408628262,1774012240198,-500.0,0.00012381,2]
[408628263,1774012240207,-500.0,0.00012381,2]
[408628264,1774012240217,-500.0,0.00012381,2]
[408628265,1774012240226,-500.0,0.00012381,2]
[408628266,1774012240235,-500.0,0.00012381,2]
[408628267,1774012240245,-500.0,0.00012381,2]
[408628268,1774012240254,-500.0,0.00012381,2]
[408628269,1774012240264,-500.0,0.00012381,2]
[408628270,1774012240272,-151.0,0.00012381,2]
[408628271,1774012240282,-500.0,0.00012381,2]
[408628272,1774012240292,-500.0,0.00012381,2]
[408628273,1774012240303,-500.0,0.00012381,2]
[408628274,1774012240314,-500.0,0.00012381,2]
[408628275,1774012240324,-500.0,0.00012381,2]
[408628276,1774012240333,-849.0,0.00012381,2]
[408628277,1774012240342,-500.0,0.00012381,2]
[408628278,1774012240354,-500.0,0.00012381,2]
[408628279,1774012240364,-500.0,0.00012381,2]
[408628280,1774012240375,-500.0,0.00012381,2]
[408628281,1774012240385,-500.0,0.00012381,2]
[408628282,1774012240406,-500.0,0.00012381,2]
[408628283,1774012240422,-500.0,0.00012381,2]
[408628284,1774012240433,-500.0,0.00012381,2]
[408628285,1774012240443,-500.0,0.00012381,2]
[408628286,1774012240453,-500.0,0.00012381,2]
[408628287,1774012240462,-500.0,0.00012381,2]
[408628288,1774012240472,-500.0,0.00012381,2]
[408628289,1774012240482,-500.0,0.00012381,2]
[408628290,1774012240492,-500.0,0.00012381,2]
[408628291,1774012240503,-500.0,0.00012381,2]
[408628292,1774012240514,-500.0,0.00012381,2]
[408628293,1774012240524,-500.0,0.00012381,2]
[408628294,1774012240534,-500.0,0.00012381,2]
[408628295,1774012240545,-500.0,0.00012381,2]
[408628296,1774012240555,-500.0,0.00012381,2]
[408628297,1774012240566,-500.0,0.00012381,2]
[408628298,1774012240576,-500.0,0.00012381,2]
[408628299,1774012240586,-500.0,0.00012381,2]
[408628300,1774012240596,-500.0,0.00012381,2]
[408628301,1774012240605,-500.0,0.00012381,2]
[408628302,1774012240615,-500.0,0.00012381,2]
[408628303,1774012240625,-500.0,0.00012381,2]
[408628304,1774012240634,-500.0,0.00012381,2]
[408628305,1774012240644,-500.0,0.00012381,2]
[408628306,1774012240654,-500.0,0.00012381,2]
[408628307,1774012240664,-500.0,0.00012381,2]
[408628308,1774012240674,-500.0,0.00012381,2]
[408628309,1774012240683,-500.0,0.00012381,2]
[408628311,1774012240693,-500.0,0.00012381,2]
[408628312,1774012240702,-500.0,0.00012381,2]
[408628313,1774012240712,-500.0,0.00012381,2]
[408628314,1774012240723,-500.0,0.00012381,2]
[408628315,1774012240733,-500.0,0.00012381,2]
[408628316,1774012240743,-500.0,0.00012381,2]
[408628317,1774012240758,-500.0,0.00012381,2]
[408628318,1774012240770,-500.0,0.00012381,2]
[408628319,1774012240781,-500.0,0.00012381,2]
[408628320,1774012240792,-500.0,0.00012381,2]
[408628321,1774012240804,-500.0,0.00012381,2]
[408628322,1774012240815,-500.0,0.00012381,2]
[408628323,1774012240829,-500.0,0.00012381,2]
[408628324,1774012240840,-500.0,0.00012381,2]
[408628325,1774012240851,-500.0,0.00012381,2]
[408628326,1774012240863,-500.0,0.00012381,2]
[408628327,1774012240874,-500.0,0.00012381,2]
[408628328,1774012240885,-500.0,0.00012381,2]
[408628329,1774012240896,-500.0,0.00012381,2]
[408628330,1774012240906,-500.0,0.00012381,2]
[408628331,1774012240917,-500.0,0.00012381,2]
[408628332,1774012240927,-500.0,0.00012381,2]
[408628333,1774012240938,-500.0,0.00012381,2]
[408628334,1774012240948,-500.0,0.00012381,2]
[408628335,1774012240958,-500.0,0.00012381,2]
[408628336,1774012240969,-500.0,0.00012381,2]
[408628337,1774012240980,-500.0,0.00012381,2]
[408628338,1774012240990,-500.0,0.00012381,2]
[408628339,1774012241002,-500.0,0.00012381,2]
[408628340,1774012241012,-500.0,0.00012381,2]
[408628341,1774012241022,-500.0,0.00012381,2]
[408628342,1774012241033,-500.0,0.00012381,2]
[408628343,1774012241043,-500.0,0.00012381,2]
[408628344,1774012241053,-500.0,0.00012381,2]
[408628345,1774012241063,-500.0,0.00012381,2]
[408628346,1774012241075,-500.0,0.00012381,2]
[408628347,1774012241085,-500.0,0.00012381,2]
[408628348,1774012241095,-500.0,0.00012381,2]
[408628349,1774012241105,-500.0,0.00012381,2]
[408628350,1774012241119,-500.0,0.00012381,2]
[408628351,1774012241129,-500.0,0.00012381,2]
[408628352,1774012241140,-500.0,0.00012381,2]
[408628353,1774012241151,-500.0,0.00012381,2]
[408628354,1774012241162,-500.0,0.00012381,2]
[408628355,1774012241172,-500.0,0.00012381,2]
[408628356,1774012241183,-500.0,0.00012381,2]
[408628357,1774012241193,-500.0,0.00012381,2]
[408628358,1774012241203,-742.0,0.00012381,2]
[408628359,1774012241214,-572.0,0.00012381,2]
[408628360,1774012241223,-151.0,0.00012381,2]
[408628361,1774012241234,-210.630974,0.00012381,2]
[408628362,1774012241244,-210.630974,0.00012381,2]
[408628363,1774012241255,-210.630974,0.00012381,2]
[408628364,1774012241265,-210.630974,0.00012381,2]
[408628365,1774012241276,-210.630974,0.00012381,2]
[408628366,1774012241287,-210.630974,0.00012381,2]
[408628367,1774012241297,-210.630974,0.00012381,2]
[408628368,1774012241309,-210.630974,0.00012381,2]
[408628369,1774012241325,-236.641516,0.00012381,2]
[408628370,1774012241335,-236.641516,0.00012381,2]
[408628371,1774012241346,-236.641516,0.00012381,2]
[408628372,1774012241358,-236.641516,0.00012381,2]
[408628373,1774012241368,-236.641516,0.00012381,2]
[408628374,1774012241381,-236.641516,0.00012381,2]
[408628375,1774012241391,-236.641516,0.00012381,2]
[408628376,1774012241400,-236.641516,0.00012381,2]
[408628377,1774012241410,-151.0,0.00012381,2]
[408628378,1774012241422,-151.0,0.00012381,2]
[408628379,1774012241433,-151.0,0.00012381,2]
[408628380,1774012241771,-151.0,0.00012381,2]
[408628381,1774012241782,-151.0,0.00012381,2]
[408628382,1774012241792,-151.0,0.00012381,2]
[408628383,1774012241802,-151.0,0.00012381,2]
[408628384,1774012241812,-151.0,0.00012381,2]
[408628385,1774012241822,-151.0,0.00012381,2]
[408628386,1774012241832,-152.667775,0.00012381,2]
[408628387,1774012241842,-2049.21867203,0.0001245,2]
[408628388,1774012241851,-200.0,0.00012575,2]
[408628389,1774012241861,-200.0,0.00012575,2]
[408628390,1774012241870,-362.81880407,0.0001259,2]
[408628391,1774012241880,-381.26107722,0.0001259,2]
[408628392,1774012241889,-500.0,0.00012657,2]
[408628393,1774012241899,-500.0,0.00012668,2]
[408628394,1774012241909,-10000.0,0.00012677,2]
[408628395,1774012241919,-200.0,0.00012701,2]
[408628396,1774012241929,-6419.22703328,0.00012764,2]
[408628397,1774012241938,-151.0,0.00012777,2]
[408628398,1774012241948,-200.0,0.00012828,2]
[408628399,1774012241957,-500.0,0.0001283,2]
[408628400,1774012241966,-7151.426893,0.00012885,2]
[408628401,1774012241975,-1334.2077824,0.00012885,2]
[408628402,1774012241985,-200.0,0.00012956,2]
[408628403,1774012241994,-37277.2685943,0.00012987,2]
[408628404,1774012242003,-151.0,0.00012987,2]
[408628405,1774012242012,-151.0,0.00012987,2]
[408628406,1774012242022,-151.0,0.00012987,2]
[408628407,1774012242032,-151.0,0.00012987,2]
[408628408,1774012242042,-151.0,0.00012987,2]
[408628409,1774012242051,-2582.17856345,0.00012995,2]
[408628410,1774012242061,-210.630974,0.00012998,2]
[408628411,1774012242071,-210.630974,0.00012998,2]
[408628412,1774012242080,-210.630974,0.00012998,2]
[408628413,1774012242090,-210.63097,0.00012998,2]
[408628414,1774012242100,-236.641516,0.00012998,2]
[408628415,1774012242110,-236.641516,0.00012998,2]
[408628416,1774012242119,-236.641516,0.00012998,2]
[408628417,1774012242129,-236.641516,0.00012998,2]
[408628418,1774012242138,-197.5162,0.00013,2]
[408628419,1774012242148,-835.5563699,0.00013022,2]
[408628420,1774012242157,-200.0,0.00013086,2]
[408628421,1774012242167,-26665.23901098,0.000131,2]
[408628422,1774012242177,-2000.0,0.00013135,2]
[408628423,1774012242186,-500.0,0.00013136,2]
[408628424,1774012242195,-1400.0,0.00013136,2]
[408628425,1774012242205,-1000.0,0.00013136,2]
[408628426,1774012242214,-4043.69592308,0.00013186,2]
[408628427,1774012242223,-170.0,0.00013192,2]
[408628428,1774012242233,-178.64,0.00013198,2]
[408628429,1774012242242,-1595.6990279,0.00013213,2]
[408628430,1774012242252,-297.7019961,0.00013213,2]
[408628431,1774012242262,-540.61596891,0.00013216,2]
[408628432,1774012242271,-979.16666667,0.00013284,2]
[408628433,1774012242281,-160.0,0.00013284,2]
[408628434,1774012242291,-502.0,0.000133,2]
[408628435,1774012242302,-8317.6829113,0.00013323,2]
[408628436,1774012242318,-1133.0,0.00013346,5]
[408628437,1774012242328,-1000.0,0.00013378,2]
[408628438,1774012242337,-186.4378266,0.0001338,2]
[408628439,1774012242348,-163.77,0.00013389,2]
[408628440,1774012242357,-3240.0,0.00013425,2]
[408628441,1774012242367,-250.08835383,0.00013443,2]
[408628442,1774012242377,-361.7214811,0.00013467,2]
[408628443,1774012242388,-6419.22703328,0.00013498,2]
[408628444,1774012242398,-945.1196,0.000135,2]
[408628445,1774012242408,-157.87765431,0.00013598,2]
[408628446,1774012242418,-155.0,0.00013618,2]
[408628447,1774012242428,-500.0,0.00013698,2]
[408628448,1774012242438,-500.0,0.00013698,2]
[408628449,1774012242447,-500.0,0.00013698,2]
[408628450,1774012242457,-562.79679382,0.00013698,2]
[408628451,1774012242467,-500.0,0.00013698,2]
[408628452,1774012242476,-520.40818183,0.00013698,2]
[408628453,1774012242486,-500.0,0.00013698,2]
[408628454,1774012242496,-500.0,0.00013698,2]
[408628455,1774012242505,-408.75041158,0.00013698,2]
[408628456,1774012242515,-500.0,0.00013698,2]
[408628457,1774012242526,-500.0,0.00013698,2]
[408628458,1774012242535,-500.0,0.00013698,2]
[408628459,1774012242545,-500.0,0.00013698,2]
[408628460,1774012242555,-500.0,0.00013698,2]
[408628461,1774012242565,-500.0,0.00013698,2]
[408628462,1774012242574,-283.18673429,0.00013698,2]
[408628463,1774012242584,-500.0,0.00013698,2]
[408628464,1774012242594,-600.87743374,0.00013698,2]
[408628465,1774012242604,-500.0,0.00013698,2]
[408628466,1774012242613,-500.0,0.00013698,2]
[408628467,1774012242622,-500.0,0.00013698,2]
[408628468,1774012242633,-520.49971171,0.00013698,2]
[408628469,1774012242643,-500.0,0.00013698,2]
[408628470,1774012242652,-500.0,0.00013698,2]
[408628471,1774012242662,-500.0,0.00013698,2]
[408628472,1774012242671,-500.0,0.00013698,2]
[408628473,1774012242681,-513.73488275,0.00013698,2]
[408628474,1774012242691,-500.0,0.00013698,2]
[408628475,1774012242701,-500.0,0.00013698,2]
[408628476,1774012242710,-500.0,0.00013698,2]
[408628477,1774012242720,-516.22036837,0.00013698,2]
[408628478,1774012242730,-500.0,0.00013698,2]
[408628479,1774012242740,-500.0,0.00013698,2]
[408628480,1774012242749,-426.55145088,0.00013698,2]
[408628481,1774012242760,-500.0,0.00013698,2]
[408628483,1774012242770,-524.39877348,0.00013698,2]
[408628485,1774012242780,-500.0,0.00013698,2]
[408628487,1774012242791,-500.0,0.00013698,2]
[408628488,1774012242801,-509.50760741,0.00013698,2]
[408628489,1774012242811,-500.0,0.00013698,2]
[408628490,1774012242821,-500.0,0.00013698,2]
[408628491,1774012242832,-516.01521711,0.00013698,2]
[408628492,1774012242842,-500.0,0.00013698,2]
[408628493,1774012242852,-500.0,0.00013698,2]
[408628494,1774012242862,-500.0,0.00013698,2]
[408628495,1774012242872,-500.0,0.00013698,2]
[408628496,1774012242882,-500.0,0.00013698,2]
[408628497,1774012242892,-500.0,0.00013698,2]
[408628498,1774012242902,-517.39570149,0.00013698,2]
[408628499,1774012242913,-500.0,0.00013698,2]
[408628502,1774012242924,-500.0,0.00013698,2]
[408628503,1774012242934,-500.0,0.00013698,2]
[408628505,1774012242944,-500.0,0.00013698,2]
[408628507,1774012242954,-500.0,0.00013698,2]
[408628508,1774012242964,-500.0,0.00013698,2]
[408628509,1774012242973,-500.0,0.00013698,2]
[408628510,1774012242982,-500.0,0.00013698,2]
[408628511,1774012242992,-500.0,0.00013698,2]
[408628512,1774012243001,-544.02242372,0.00013698,2]
[408628513,1774012243010,-500.0,0.00013698,2]
[408628514,1774012243020,-236.33575124,0.00013698,2]
[408628515,1774012243030,-354.43194097,0.00013698,2]
[408628516,1774012243039,-231.7555346,0.00013698,2]
[408628517,1774012243049,-353.93616942,0.00013698,2]
[408628518,1774012243058,-500.0,0.00013698,2]
[408628519,1774012243067,-500.0,0.00013698,2]
[408628520,1774012243076,-500.0,0.00013698,2]
[408628521,1774012243086,-536.12061695,0.00013698,2]
[408628522,1774012243095,-647.78,0.00013698,2]
[408628523,1774012243105,-500.0,0.00013698,2]
[408628524,1774012243114,-591.49705817,0.00013698,2]
[408628525,1774012243125,-500.0,0.00013698,2]
[408628526,1774012243135,-500.0,0.00013698,2]
[408628527,1774012243144,-500.0,0.00013698,2]
[408628528,1774012243153,-500.0,0.00013698,2]
[408628529,1774012243163,-504.37215137,0.00013698,2]
[408628530,1774012243173,-170.809793,0.00013698,2]
[408628531,1774012243183,-500.0,0.00013698,2]
[408628532,1774012243193,-418.4661,0.00013698,2]
[408628533,1774012243203,-500.0,0.00013698,2]
[408628534,1774012243213,-500.0,0.00013698,2]
[408628535,1774012243224,-646.06383058,0.00013698,2]
[408628536,1774012243234,-500.0,0.00013698,2]
[408628537,1774012243244,-500.0,0.00013698,2]
[408628538,1774012243253,-500.0,0.00013698,2]
[408628539,1774012243263,-500.0,0.00013698,2]
[408628540,1774012243273,-500.0,0.00013698,2]
[408628541,1774012243282,-500.0,0.00013698,2]
[408628542,1774012243293,-500.0,0.00013698,2]
[408628543,1774012243303,-500.0,0.00013698,2]
[408628544,1774012243317,-500.0,0.00013698,2]
[408628545,1774012243326,-500.0,0.00013698,2]